bitfinex-derivatives/quotes_ETHF0:USTF0_20241231
["timestamp","ask_amount","ask_price","bid_price","bid_amount"]
[1735675367322,0.29816,3358.8,3358.6,4.68168543]
[1735675367323,0.29816,3358.7,3358.6,4.68168543]
[1735675367623,0.29817,3358.6,3358.5,5.11598543]
[1735675367822,1.16137,3358.6,3358.5,5.11598543]
[1735675368315,3.2078,3358.9,3358.5,6.92932949]
[1735675368515,0.29813,3359.1,3359.0,0.29813]
[1735675368717,3.78129078,3359.1,3359.0,0.29813]
[1735675369816,0.29813,3359.1,3359.0,0.29813]
[1735675371518,0.29813,3359.0,3358.9,0.72374]
[1735675371915,0.29813,3359.1,3359.0,0.29813]
[1735675373225,0.29813,3359.0,3358.9,0.72374]
[1735675376739,0.29814,3358.9,3358.8,4.68168543]
[1735675377043,0.29814,3358.9,3358.8,4.97983543]
[1735675377437,0.29814,3358.9,3358.8,4.68168543]
[1735675377634,0.29814,3358.9,3358.8,7.03572096]
[1735675377840,0.29814,3358.9,3358.8,12.30119724]
[1735675382340,0.29814,3358.9,3358.8,4.68796155]
[1735675384039,2.11148406,3358.9,3358.8,4.68796155]
[1735675385447,2.11148406,3358.9,3358.3,4.68796155]
[1735675385448,6.44553568,3358.9,3358.3,4.68796155]
[1735675385749,3.50599,3358.5,3358.4,0.29819]
[1735675385942,3.6504,3358.8,3358.3,4.68796155]
[1735675386142,0.29818,3358.5,3358.4,0.29818]
[1735675386947,0.8495,3358.7,3358.3,4.68796155]
[1735675387148,5.84174233,3358.8,3358.7,0.29816]
[1735675388346,3.50595,3358.8,3358.7,4.98612155]
[1735675388741,3.50595,3358.8,3358.7,5.44932155]
[1735675390250,3.50595,3358.8,3358.7,5.15116155]
[1735675390947,3.50595,3358.8,3358.7,6.01866543]
[1735675391151,0.29815,3358.9,3358.7,5.72050543]
[1735675391349,0.29815,3358.8,3358.7,5.72050543]
[1735675391650,0.72505,3358.8,3358.7,6.01866543]
[1735675392151,0.72505,3358.8,3358.7,0.76136]
[1735675393661,2.33579233,3358.9,3358.8,0.29815]
[1735675394051,2.33579233,3358.9,3358.8,0.73815]
[1735675394948,0.29814,3359.0,3358.9,0.29814]
[1735675395153,3.18529233,3359.1,3358.8,5.12712348]
[1735675395449,2.33579233,3359.1,3359.0,0.29813]
[1735675395758,2.33579233,3359.1,3359.0,2.11147406]
[1735675396048,2.33579233,3359.2,3359.1,0.29813]
[1735675396254,2.33579233,3359.2,3359.1,0.73523]
[1735675397051,0.75219,3359.5,3359.1,15.37015644]
[1735675397250,0.75219,3359.5,3359.4,0.2981]
[1735675398657,0.75219,3359.5,3359.4,4.98392114]
[1735675399361,0.4541,3359.5,3359.4,4.98392114]
[1735675399748,0.4541,3359.5,3359.4,12.57911232]
[1735675399952,1.17625,3359.9,3359.4,12.28101232]
[1735675400153,0.29809,3359.6,3359.5,0.29808]
[1735675400758,0.29809,3359.6,3359.5,5.55036061]
[1735675402158,0.891,3359.9,3359.5,5.25228061]
[1735675402358,0.29808,3359.7,3359.6,0.29807]
[1735675402749,0.4599,3359.9,3359.8,0.29806]
[1735675402961,2.33579233,3360.0,3359.9,0.29805]
[1735675403848,2.63383233,3360.1,3360.0,0.29805]
[1735675404052,2.33579233,3360.1,3360.0,0.29805]
[1735675406160,0.878,3360.3,3360.2,0.29803]
[1735675407456,1.17602,3360.3,3360.2,0.29803]
[1735675407756,0.878,3360.3,3360.2,0.29803]
[1735675408057,2.33579233,3360.5,3359.9,2.55847406]
[1735675408363,2.33579233,3360.5,3360.4,0.29801]
[1735675409263,3.2078,3360.6,3360.3,0.9006]
[1735675409264,3.2078,3360.6,3360.5,0.298]
[1735675410165,3.50579,3360.6,3360.5,0.298]
[1735675412963,3.2078,3360.6,3360.5,0.298]
[1735675413471,3.50579,3360.6,3360.5,0.298]
[1735675415766,3.2078,3360.6,3360.5,0.298]
[1735675415965,1.19398,3360.8,3360.3,1.3614]
[1735675416170,0.29796,3361.0,3360.9,0.29796]
[1735675417369,3.50575,3361.1,3361.0,0.29796]
[1735675418471,3.2078,3361.1,3361.0,0.29796]
[1735675418669,3.50575,3361.1,3361.0,0.29796]
[1735675420867,3.2078,3361.1,3360.6,3.2078]
[1735675421075,0.29801,3360.5,3360.4,0.298]
[1735675421277,0.74493,3360.9,3360.3,5.43112486]
[1735675421278,0.29801,3360.4,3360.3,5.43112486]
[1735675421478,0.74501,3360.4,3360.3,5.43112486]
[1735675422662,0.74501,3360.4,3360.3,0.74872]
[1735675423068,0.447,3360.4,3360.3,0.74872]
[1735675426074,0.74501,3360.4,3360.3,0.74872]
[1735675429481,0.447,3360.4,3360.3,0.74872]
[1735675436575,0.74501,3360.4,3360.3,0.74872]
[1735675436773,0.447,3360.4,3360.3,0.74872]
[1735675437172,0.74501,3360.4,3360.3,0.74872]
[1735675437380,0.447,3360.4,3360.3,0.74872]
[1735675437575,0.74501,3360.4,3360.3,0.74872]
[1735675437781,0.447,3360.4,3360.3,0.74872]
[1735675438482,0.74501,3360.4,3360.3,0.74872]
[1735675438680,0.447,3360.4,3360.3,0.74872]
[1735675438881,0.74501,3360.4,3360.3,0.74872]
[1735675439382,0.447,3360.4,3360.3,0.74872]
[1735675439582,0.74501,3360.4,3360.3,0.74872]
[1735675439985,0.447,3360.4,3360.3,0.74872]
[1735675440282,0.29802,3360.3,3360.2,4.68240486]
[1735675440474,5.76356406,3360.3,3360.2,4.68240486]
[1735675440784,5.76356406,3360.3,3360.2,2.42230486]
[1735675441481,5.76356406,3360.3,3360.2,1.02210486]
[1735675442180,0.29808,3359.7,3359.6,0.29807]
[1735675444384,3.2078,3359.9,3359.3,1.195]
[1735675444586,0.29809,3359.6,3359.5,0.29808]
[1735675445691,0.29811,3359.3,3359.2,7.02873171]
[1735675445884,0.29811,3359.3,3359.2,7.32685171]
[1735675446492,0.29811,3359.3,3359.2,7.02873171]
[1735675446880,3.2078,3359.4,3359.1,1.16462]
[1735675446881,0.29812,3359.2,3359.1,1.16462]
[1735675447495,2.33579233,3359.6,3359.5,0.29809]
[1735675448178,2.33579233,3359.6,3359.2,1.18218]
[1735675448179,3.50368849,3359.7,3359.2,0.4369]
[1735675448381,0.2981,3359.5,3359.4,0.29809]
[1735675449892,0.29809,3359.6,3359.5,0.29809]
[1735675450787,3.2078,3359.8,3359.3,1.81334406]
[1735675450987,2.33505293,3360.0,3359.4,0.74525]
[1735675451196,0.29805,3360.0,3359.9,0.29805]
[1735675451989,0.29807,3359.8,3359.7,0.29806]
[1735675452285,3.94623,3360.2,3360.1,0.29804]
[1735675452587,2.33505293,3360.4,3360.3,0.29802]
[1735675453703,0.298,3360.6,3360.5,0.298]
[1735675454695,0.29801,3360.5,3360.4,0.298]
[1735675455096,0.29801,3360.5,3360.2,0.29802]
[1735675455097,0.29803,3360.3,3360.2,0.29802]
[1735675457992,0.29803,3360.2,3360.1,0.72543]
[1735675458203,0.29803,3360.2,3360.1,0.72544]
[1735675460789,4.1132,3360.5,3360.1,0.4274]
[1735675460790,3.2078,3360.5,3360.1,0.4274]
[1735675460997,3.5058,3360.5,3360.4,0.29801]
[1735675461200,3.2078,3360.5,3360.4,0.29801]
[1735675461501,3.5058,3360.5,3360.4,0.29801]
[1735675461700,3.2078,3360.5,3360.4,0.29801]
[1735675461894,3.5058,3360.5,3360.4,0.29801]
[1735675462998,3.2078,3360.5,3360.4,0.29801]
[1735675463595,3.5058,3360.5,3360.4,0.29801]
[1735675464500,3.50776204,3360.5,3360.4,0.29801]
[1735675467603,0.29802,3360.4,3360.3,0.29801]
[1735675468805,0.72272,3360.4,3360.3,0.29801]
[1735675470806,0.4247,3360.4,3360.0,7.02873171]
[1735675471108,3.50584,3360.1,3360.0,7.32677171]
[1735675471309,3.50584,3360.1,3360.0,7.02873171]
[1735675471907,3.50584,3360.1,3360.0,7.32678171]
[1735675472204,0.29804,3360.1,3360.0,7.32678171]
[1735675472409,0.29804,3360.1,3360.0,0.72325]
[1735675472707,2.33505293,3360.4,3360.3,0.29802]
[1735675473909,3.50776204,3360.5,3360.2,0.4569]
[1735675474111,3.50776204,3360.5,3360.4,0.29801]
[1735675480104,0.29996204,3360.5,3360.4,0.29801]
[1735675481918,0.29802,3360.3,3360.2,7.48563171]
[1735675482414,0.29802,3360.3,3360.2,0.4569]
[1735675482617,0.73222,3360.3,3360.2,0.4569]
[1735675482820,0.29804,3360.1,3360.0,7.78727171]
[1735675484420,0.29804,3360.1,3360.0,0.75854]
[1735675485120,0.29804,3360.1,3359.8,1.6204]
[1735675485121,0.29804,3360.1,3359.8,0.4254]
[1735675485317,0.29805,3359.9,3359.8,0.4254]
[1735675485522,0.29806,3359.8,3359.7,7.02873171]
[1735675485723,3.00370406,3359.8,3359.7,7.02873171]
[1735675485926,2.70564406,3359.8,3359.6,9.38096129]
[1735675486228,0.29807,3359.7,3359.6,9.38096129]
[1735675486721,5.29807,3359.7,3359.6,8.72330129]
[1735675486921,6.24175014,3359.7,3359.6,8.72330129]
[1735675487630,0.74526,3359.4,3358.8,0.4639]
[1735675487816,0.29814,3358.9,3358.8,0.4639]
[1735675488622,0.29814,3358.9,3358.8,0.76205]
[1735675489024,3.2078,3359.0,3358.8,0.4639]
[1735675489231,3.2078,3359.0,3358.9,0.29814]
[1735675489727,2.33349894,3359.4,3358.8,0.8961]
[1735675489930,0.29814,3358.9,3358.8,0.76205]
[1735675490820,0.29814,3358.9,3358.8,0.4639]
[1735675492330,0.29814,3358.9,3358.5,8.19456543]
[1735675492331,0.29817,3358.6,3358.5,7.02439543]
[1735675492526,3.50597,3358.6,3358.5,7.02439543]
[1735675492724,0.29818,3358.5,3358.4,7.02439543]
[1735675493031,0.72278,3358.5,3358.4,7.02439543]
[1735675494250,0.2982,3358.3,3358.2,0.4527]
[1735675495336,0.2982,3358.3,3358.2,0.75091]
[1735675495735,3.2078,3358.6,3358.2,0.4527]
[1735675496033,0.29819,3358.5,3358.4,0.29818]
[1735675496235,3.6718,3359.0,3358.4,1.81334406]
[1735675496430,0.29815,3358.9,3358.8,0.29815]
[1735675496622,0.29815,3358.9,3358.8,0.73815]
[1735675497041,3.2078,3359.0,3358.9,0.29814]
[1735675497233,0.29813,3359.0,3358.9,0.29814]
[1735675498832,0.29814,3358.9,3358.8,0.73815]
[1735675499033,0.29814,3358.9,3358.8,0.44]
[1735675499231,0.29818,3358.5,3358.4,3.30652406]
[1735675499430,0.74537,3358.9,3358.4,3.00834406]
[1735675499631,0.29818,3358.6,3358.5,0.29817]
[1735675500536,0.29818,3358.6,3358.5,0.73257]
[1735675500936,0.29818,3358.6,3358.5,0.4344]
[1735675502128,0.29816,3358.8,3358.7,0.29815]
[1735675503336,3.2078,3359.0,3358.6,1.81334406]
[1735675503537,3.2078,3359.0,3358.9,2.11148406]
[1735675503737,3.2078,3359.4,3358.9,1.81334406]
[1735675503935,3.2078,3359.4,3358.7,1.195]
[1735675504147,0.29811,3359.3,3359.2,0.29811]
[1735675506746,0.29812,3359.2,3359.1,0.29812]
[1735675507239,3.2078,3359.4,3358.9,5.02114406]
[1735675507445,0.29812,3359.2,3359.1,0.29812]
[1735675510443,3.2078,3359.4,3358.8,1.6336]
[1735675510650,0.29812,3359.2,3359.1,0.29812]
[1735675515660,3.2078,3359.2,3358.9,0.4386]
[1735675515850,0.29813,3359.0,3358.9,0.73673]
[1735675516658,0.29813,3359.1,3359.0,0.29813]
[1735675517155,3.2078,3359.2,3359.1,0.29813]
[1735675520855,3.50588,3359.7,3359.6,0.29807]
[1735675521259,0.29808,3359.7,3359.6,0.29807]
[1735675521957,0.29807,3359.8,3359.7,0.29806]
[1735675527150,0.29806,3359.9,3359.8,0.29805]
[1735675528550,3.2078,3360.1,3360.0,0.29805]
[1735675528759,2.33349894,3360.4,3360.0,3.30639406]
[1735675528958,2.33349894,3360.4,3360.3,2.11136406]
[1735675530458,0.00196204,3360.5,3360.3,1.81334406]
[1735675530656,0.00196204,3360.5,3360.4,0.29801]
[1735675531754,0.29996204,3360.5,3360.4,0.29801]
[1735675531961,0.00196204,3360.5,3360.4,0.29801]
[1735675537461,0.29996204,3360.5,3360.4,0.29801]
[1735675537664,0.29996204,3360.5,3360.4,1.49201]
[1735675537956,0.00196204,3360.5,3360.4,1.49201]
[1735675539458,0.7516,3360.6,3360.4,1.194]
[1735675539654,0.7516,3360.6,3360.5,0.298]
[1735675540962,0.7516,3360.6,3360.5,0.7352]
[1735675541763,0.7516,3360.6,3360.5,0.73323796]
[1735675545066,0.7516,3360.6,3360.5,0.29603796]
[1735675546264,0.4536,3360.6,3359.8,0.74515]
[1735675546567,0.29803,3360.3,3360.2,0.29802]
[1735675546958,0.29802,3360.5,3360.4,0.298]
[1735675549968,0.4536,3360.6,3360.0,1.81334406]
[1735675550270,0.29804,3360.2,3360.1,0.29802]
[1735675550466,1.1986,3360.6,3359.9,1.93913]
[1735675550672,0.29803,3360.4,3360.3,0.29801]
[1735675552173,0.29804,3360.3,3360.2,0.29802]
[1735675556977,3.2078,3360.7,3360.0,3.00734406]
[1735675557176,0.29802,3360.4,3360.3,0.298]
[1735675561376,0.29802,3360.4,3360.3,0.7303]
[1735675564774,0.29802,3360.4,3360.3,0.73032]
[1735675567677,0.29802,3360.4,3360.3,0.4323]
[1735675567879,0.29802,3360.4,3360.3,0.73032]
[1735675568082,0.29802,3360.4,3360.3,5.40681016]
[1735675572082,2.33349894,3360.5,3360.4,0.29801]
[1735675572281,3.50024842,3360.5,3360.4,0.29801]
[1735675572884,1.24024842,3360.5,3360.4,0.29801]
[1735675573585,2.34336486,3360.7,3360.4,12.11779253]
[1735675573880,2.34336486,3360.7,3360.6,1.14998428]
[1735675574375,1.64336486,3360.7,3360.6,1.14998428]
[1735675574980,3.2078,3361.1,3361.0,0.29796]
[1735675575184,3.2078,3361.1,3361.0,1.14995428]
[1735675575981,3.2078,3361.1,3361.0,1.61575428]
[1735675576184,3.2078,3361.1,3361.0,5.4468149]
[1735675577790,3.2078,3361.1,3361.0,13.39065077]
[1735675578689,3.50575,3361.1,3361.0,6.36606841]
[1735675579588,3.2078,3361.1,3361.0,6.36606841]
[1735675579790,3.2078,3361.1,3361.0,13.39065077]
[1735675580080,3.50575,3361.1,3361.0,13.39065077]
[1735675580488,3.2078,3361.1,3361.0,13.39065077]
[1735675580987,3.2078,3361.1,3361.0,6.36606841]
[1735675582290,0.8842,3361.9,3361.8,0.29789]
[1735675582291,3.2078,3361.9,3361.8,0.29789]
[1735675582490,2.5079,3361.9,3361.8,10.08961998]
[1735675582685,2.5079,3361.9,3361.8,3.29075499]
[1735675582883,2.5079,3361.9,3361.8,5.08961998]
[1735675583086,3.93379162,3362.1,3362.0,0.29787]
[1735675583289,2.83932564,3362.1,3362.0,0.29787]
[1735675583480,2.83932564,3362.1,3362.0,5.29787]
[1735675584085,2.83932564,3362.1,3362.0,0.29787]
[1735675584383,0.29781,3362.7,3362.1,0.29786]
[1735675584587,0.4571,3363.0,3362.6,3.2078]
[1735675584787,0.29781,3362.7,3362.6,3.2078]
[1735675585085,0.29784,3362.3,3362.2,4.69965]
[1735675585284,0.29784,3362.4,3362.2,4.4018]
[1735675585482,0.72614,3362.3,3362.2,4.4018]
[1735675585678,0.72614,3362.3,3362.2,11.39413211]
[1735675585987,0.72614,3362.3,3362.2,8.18633211]
[1735675586587,0.72614,3362.3,3362.2,6.99233211]
[1735675587091,0.29787,3362.0,3361.9,4.65814248]
[1735675588392,0.29788,3361.9,3361.8,6.20066499]
[1735675588593,0.72208,3361.9,3361.8,6.20066499]
[1735675589089,0.72208,3361.9,3361.8,6.49855499]
[1735675589293,0.72208,3361.9,3361.8,6.20066499]
[1735675589694,0.72208,3361.9,3361.8,6.49855499]
[1735675591898,0.72208,3361.9,3361.8,5.30455499]
[1735675592790,0.4214,3362.2,3361.8,5.00666499]
[1735675593090,3.2078,3362.8,3362.1,2.09672499]
[1735675593297,1.66191,3362.7,3362.6,1.79886499]
[1735675594605,1.66191,3362.7,3362.6,2.09668499]
[1735675595200,1.66191,3362.7,3362.6,1.79886499]
[1735675598999,1.3641,3362.7,3362.6,2.09668499]
[1735675599199,1.66191,3362.7,3362.6,2.09668499]
[1735675600103,1.66191,3362.7,3362.6,1.79886499]
[1735675601094,1.3641,3362.7,3362.6,2.09668499]
[1735675602303,1.66191,3362.7,3362.6,2.09668499]
[1735675602707,1.3641,3362.7,3362.6,2.09668499]
[1735675605701,0.4493,3362.7,3362.6,2.09668499]
[1735675606109,0.8672,3363.2,3362.6,1.79886499]
[1735675606309,0.74827,3363.1,3363.0,0.29778]
[1735675606709,0.4505,3363.1,3363.0,0.29778]
[1735675607012,0.74827,3363.1,3363.0,0.29778]
[1735675607713,0.29778,3363.0,3362.9,1.79886499]
[1735675607915,0.29779,3362.9,3362.8,1.49579]
[1735675608212,0.4505,3363.1,3362.7,3.2078]
[1735675608213,0.2978,3362.8,3362.7,3.2078]
[1735675608606,0.2978,3362.8,3362.7,3.50561]
[1735675609211,0.2978,3362.9,3362.8,0.29779]
[1735675610818,0.29778,3363.0,3362.9,0.29778]
[1735675611017,0.29778,3363.0,3362.9,2.09664499]
[1735675611220,0.4505,3363.1,3363.0,0.29778]
[1735675613616,0.29774,3363.5,3363.4,0.29774]
[1735675613922,0.29774,3363.5,3363.4,2.09660499]
[1735675614718,0.29773,3363.6,3363.5,0.29773]
[1735675615224,1.3092,3363.7,3363.4,1.79886499]
[1735675615418,0.4504,3363.7,3363.6,0.29773]
[1735675617528,0.74812,3363.7,3363.6,0.29773]
[1735675617724,1.19052,3363.7,3363.6,0.29773]
[1735675618922,0.8928,3363.7,3363.6,0.29773]
[1735675619722,1.19052,3363.7,3363.6,0.29773]
[1735675619920,0.8928,3363.7,3363.6,0.29773]
[1735675620324,1.19052,3363.7,3363.6,0.29773]
[1735675620727,0.8928,3363.7,3363.6,0.29773]
[1735675621319,1.19052,3363.7,3363.6,0.29773]
[1735675621525,1.19052,3363.7,3363.4,1.79886499]
[1735675621526,0.29774,3363.6,3363.5,0.29773]
[1735675621926,0.8928,3363.7,3363.6,0.29773]
[1735675622930,1.19052,3363.7,3363.6,0.29773]
[1735675623633,0.8928,3363.7,3363.6,0.29773]
[1735675625033,0.29774,3363.5,3363.4,0.29774]
[1735675625229,0.8928,3363.7,3363.3,3.2078]
[1735675625530,0.4504,3363.7,3363.6,2.09659499]
[1735675626033,0.463,3363.8,3363.6,1.79886499]
[1735675626228,0.463,3363.8,3363.7,3.50552]
[1735675626626,0.4617,3364.2,3364.1,0.29768]
[1735675626829,0.4617,3364.2,3364.1,6.50534499]
[1735675627429,0.4482,3364.6,3364.1,6.20766499]
[1735675627635,0.8999,3364.6,3364.5,3.50545]
[1735675627835,1.19754,3364.6,3364.5,3.50545]
[1735675628027,4.65314719,3364.9,3364.5,3.50545]
[1735675628028,4.65314719,3364.9,3364.5,3.2078]
[1735675628235,4.65314719,3364.9,3364.8,2.09648499]
[1735675628432,4.65314719,3364.9,3364.8,3.29748499]
[1735675629432,5.83087314,3365.1,3364.8,7.99986499]
[1735675629730,1.72553913,3365.1,3365.0,3.5054]
[1735675630235,4.65977045,3366.5,3365.6,0.29755]
[1735675630431,0.29749,3366.3,3365.6,8.00652998]
[1735675630637,0.73768,3366.4,3366.1,5.30417499]
[1735675630931,0.4594,3366.2,3366.1,5.30417499]
[1735675631128,0.4402,3366.4,3366.3,0.29749]
[1735675631329,0.48584988,3366.4,3366.3,1.49849]
[1735675631735,0.78332988,3366.4,3366.3,1.201]
[1735675632134,0.78332988,3366.4,3366.1,5.00666499]
[1735675632135,0.2975,3366.2,3366.1,5.00666499]
[1735675632338,0.34314988,3366.2,3366.1,5.00666499]
[1735675634140,5.04564988,3366.2,3365.7,3.2078]
[1735675634435,0.29757,3365.4,3365.3,3.2078]
[1735675634737,0.29757,3365.4,3365.0,4.65814248]
[1735675634738,0.29759,3365.2,3365.1,1.201]
[1735675635436,0.29763,3365.0,3364.9,2.99986499]
[1735675635628,0.29766,3364.7,3364.6,2.99986499]
[1735675636334,0.29769,3364.4,3364.3,2.99986499]
[1735675636531,0.34333988,3364.4,3364.3,1.79886499]
[1735675637133,0.29771,3364.1,3364.0,1.79886499]
[1735675637333,0.4526,3364.3,3363.7,1.79886499]
[1735675637532,0.29774,3363.8,3363.7,2.09661499]
[1735675638036,1.297,3364.3,3363.8,0.29774]
[1735675638230,0.29772,3364.0,3363.8,0.29774]
[1735675638634,0.29773,3363.9,3363.7,1.79886499]
[1735675638831,0.08648289,3364.1,3363.7,2.09660499]
[1735675639235,0.38421289,3363.9,3363.8,0.29774]
[1735675639534,0.38421289,3363.9,3363.7,1.79886499]
[1735675639838,0.38421289,3363.9,3363.8,0.29774]
[1735675640040,0.38421289,3363.9,3363.7,2.09660499]
[1735675640339,0.08648289,3363.8,3363.7,2.09660499]
[1735675640539,0.38422289,3363.8,3363.7,2.09660499]
[1735675641036,0.38422289,3363.8,3363.7,1.79886499]
[1735675641240,0.08648289,3363.8,3363.7,0.29775]
[1735675641440,0.38422289,3363.8,3363.7,0.29775]
[1735675641839,0.08648289,3363.8,3363.7,0.29775]
[1735675642136,0.08648289,3363.8,3363.5,1.201]
[1735675642435,0.38423289,3363.8,3363.7,0.29775]
[1735675642740,0.4250659,3363.8,3363.7,0.29775]
[1735675643141,0.1273159,3363.8,3363.7,0.29775]
[1735675643442,0.1273159,3363.8,3363.7,5.30441499]
[1735675644340,0.0273159,3363.8,3363.7,5.30441499]
[1735675646647,0.0273159,3363.8,3363.7,3.50555]
[1735675646844,0.0273159,3363.8,3363.7,0.29775]
[1735675647341,0.0273159,3363.8,3363.7,3.29761499]
[1735675647744,0.0273159,3363.8,3363.7,1.49875]
[1735675648143,0.29773,3364.0,3363.9,0.29773]
[1735675648337,0.29773,3363.9,3363.8,0.29773]
[1735675649339,0.33856301,3363.9,3363.8,0.29773]
[1735675649745,0.04083301,3363.9,3363.3,5.00666499]
[1735675650052,0.29776,3363.6,3363.5,0.29776]
[1735675650246,0.29775,3363.7,3363.6,0.29775]
[1735675650442,0.04083301,3363.7,3363.6,0.29776]
[1735675650943,0.33858301,3363.7,3363.6,0.29776]
[1735675651152,0.33858301,3363.7,3363.6,1.49876]
[1735675651349,0.04083301,3363.7,3363.6,1.49876]
[1735675652640,0.04083301,3363.7,3363.6,0.29776]
[1735675652843,0.33858301,3363.7,3363.6,1.201]
[1735675653041,0.29776,3363.6,3363.5,1.49876]
[1735675653245,0.04083301,3363.7,3363.3,3.2078]
[1735675653435,0.33860301,3363.5,3363.4,0.29777]
[1735675654145,0.08166602,3363.5,3363.3,4.4088]
[1735675654344,0.29779,3363.2,3363.1,4.65814248]
[1735675654546,0.8635,3363.4,3362.9,4.65814248]
[1735675654747,0.29781,3363.0,3362.9,4.65814248]
[1735675655250,0.37947602,3363.0,3362.9,4.65814248]
[1735675655948,0.29784,3362.7,3362.6,1.49884]
[1735675656135,0.37950602,3362.7,3362.6,1.49884]
[1735675657544,0.37950602,3362.7,3362.6,1.201]
[1735675657745,3.58730602,3362.7,3362.6,1.201]
[1735675658649,3.28946602,3362.7,3362.2,1.209]
[1735675658840,0.29787,3362.4,3362.3,0.29786]
[1735675659045,0.9045,3362.6,3362.4,0.29785]
[1735675659046,0.29786,3362.5,3362.4,0.29785]
[1735675659246,0.37952602,3362.5,3362.4,0.29785]
[1735675659647,0.08166602,3362.5,3362.2,1.209]
[1735675660047,0.37952602,3362.5,3362.4,0.29786]
[1735675660550,0.08166602,3362.5,3362.4,0.29786]
[1735675662756,0.08166602,3362.5,3362.4,2.09672499]
[1735675662950,0.37951602,3362.5,3362.4,2.09672499]
[1735675663152,0.08166602,3362.5,3362.4,2.09672499]
[1735675663852,0.37951602,3362.5,3362.4,0.29786]
[1735675664547,0.08166602,3362.5,3362.4,0.29786]
[1735675665153,0.37951602,3362.5,3362.4,0.29786]
[1735675667050,0.08166602,3362.5,3362.4,0.29786]
[1735675669757,0.37951602,3362.5,3362.4,0.29786]
[1735675670154,3.28946602,3362.5,3362.1,1.209]
[1735675670348,3.28946602,3362.5,3362.0,0.29789]
[1735675670349,0.2979,3362.1,3362.0,0.29789]
[1735675671258,0.37956602,3362.1,3362.0,0.29789]
[1735675672455,0.08166602,3362.1,3362.0,0.29789]
[1735675674554,3.2078,3362.9,3362.8,0.29783]
[1735675674758,3.2078,3363.7,3362.8,5.00666499]
[1735675674957,0.4619,3363.8,3363.2,1.79886499]
[1735675675159,0.29775,3363.7,3363.6,0.29775]
[1735675675659,0.29777,3363.6,3363.5,0.29776]
[1735675678161,0.29777,3363.5,3363.4,0.29777]
[1735675678356,0.75947,3363.5,3363.4,0.29777]
[1735675678960,0.4617,3363.5,3363.2,1.79886499]
[1735675679163,0.4617,3363.5,3362.9,1.79886499]
[1735675679354,3.2078,3363.3,3362.6,3.43116499]
[1735675679560,0.29782,3363.0,3362.9,0.29781]
[1735675680259,0.29782,3363.0,3362.6,8.08930747]
[1735675680260,0.29784,3362.7,3362.6,4.65814248]
[1735675680458,3.50564,3362.7,3362.6,4.65814248]
[1735675681162,0.29785,3362.6,3362.5,0.29785]
[1735675681468,0.29786,3362.5,3362.4,0.29786]
[1735675685460,1.19505,3362.6,3362.5,0.29785]
[1735675688372,0.75632,3362.9,3362.8,0.29783]
[1735675688563,3.2078,3363.1,3362.4,0.74466]
[1735675688564,3.6498,3363.1,3362.4,4.4108]
[1735675688759,3.6358,3363.5,3362.9,1.79886499]
[1735675688964,3.6358,3363.5,3363.3,0.29777]
[1735675688965,0.29778,3363.4,3363.3,0.29777]
[1735675690159,3.50557,3363.5,3363.4,0.29777]
[1735675691864,3.2078,3363.5,3363.4,0.29777]
[1735675692072,0.29777,3363.6,3363.5,0.29776]
[1735675693263,0.453,3363.9,3363.2,5.00666499]
[1735675693464,0.29774,3363.8,3363.7,0.29774]
[1735675693767,0.453,3363.9,3363.8,0.29774]
[1735675694471,0.75073,3363.9,3363.8,0.29774]
[1735675694864,0.29775,3363.7,3363.6,0.29774]
[1735675695170,0.453,3363.9,3363.4,1.203]
[1735675695364,0.29774,3363.8,3363.7,4.95588248]
[1735675695866,0.453,3363.9,3363.7,4.65814248]
[1735675696057,0.75074,3363.9,3363.8,0.29774]
[1735675696764,0.75073,3363.9,3363.8,0.29774]
[1735675697969,0.453,3363.9,3363.8,0.29774]
[1735675698165,0.453,3363.9,3363.7,4.65814248]
[1735675698166,3.2078,3364.0,3363.7,4.65814248]
[1735675698362,0.74902,3364.1,3364.0,0.29772]
[1735675698668,0.74902,3364.1,3363.6,9.51902248]
[1735675698669,0.29774,3364.0,3363.9,0.29772]
[1735675699861,0.4513,3364.1,3363.8,4.65814248]
[1735675700064,0.29773,3363.9,3363.8,4.95587248]
[1735675701173,0.74902,3364.1,3364.0,0.29772]
[1735675701573,0.4513,3364.1,3363.7,5.86114248]
[1735675701767,0.29773,3364.0,3363.9,0.29773]
[1735675703967,0.29775,3363.8,3363.7,0.29774]
[1735675705570,0.29775,3363.8,3363.5,5.86114248]
[1735675705571,0.29776,3363.6,3363.5,4.65814248]
[1735675705770,3.50556,3363.6,3363.5,4.65814248]
[1735675707177,3.2078,3363.6,3363.3,0.29778]
[1735675707387,0.29777,3363.4,3363.3,0.29778]
[1735675707884,0.29779,3363.3,3363.2,0.29778]
[1735675708774,0.4501,3363.5,3363.1,4.65814248]
[1735675708975,0.29779,3363.2,3363.1,4.65814248]
[1735675709875,0.29781,3363.0,3362.9,4.95595248]
[1735675710479,0.29781,3363.0,3362.9,4.65814248]
[1735675711380,0.76301,3363.0,3362.9,4.65814248]
[1735675711576,0.76301,3363.0,3362.8,6.99233211]
[1735675711577,0.4652,3363.0,3362.6,4.65814248]
[1735675711776,0.29784,3362.7,3362.6,4.95598248]
[1735675713178,0.29784,3362.7,3362.6,0.29784]
[1735675713381,0.4401,3362.9,3362.6,0.29784]
[1735675713682,0.4401,3362.9,3362.4,9.06894248]
[1735675713683,0.73792,3362.9,3362.8,0.29783]
[1735675717385,0.4652,3363.0,3362.9,0.29782]
[1735675717590,0.76302,3363.0,3362.9,0.29782]
[1735675717990,0.29783,3362.9,3362.8,0.29782]
[1735675718386,0.4652,3363.0,3362.6,6.45700747]
[1735675718692,0.4652,3363.0,3362.9,0.29782]
[1735675721486,0.76301,3363.0,3362.9,0.29782]
[1735675722589,0.29782,3362.9,3362.8,0.29782]
[1735675724095,0.29782,3362.9,3362.8,4.9637626]